[Event "Titled Tuesday Blitz December 06 Late 2022"]
[White "Weisz, Bryan"]
[Black "Bogaudinov, Rushan"]
[WhiteFideId "30934133"]
[BlackFideId "4129288"]
[WhiteElo "2301"]
[BlackElo "2028"]
[Result "0-1"]
[Round "06"]
[TimeControl "180+1"]
[Date "2022.12.07"]
[WhiteClock "0:00:07"]
[BlackClock "0:00:12"]

1. e4 {[%clk 0:02:59]}  a6 {[%clk 0:02:32]} 2. d4 {[%clk 0:02:56]}  e6 {[%clk 0:02:32]} 3. c4 {[%clk 0:02:55]}  c5 {[%clk 0:02:29]} 4. d5 {[%clk 0:02:55]}  d6 {[%clk 0:02:24]} 5. Nc3 {[%clk 0:02:53]}  Nf6 {[%clk 0:02:24]} 6. f4 {[%clk 0:02:51]}  Qc7 {[%clk 0:02:19]} 7. Nf3 {[%clk 0:02:42]}  exd5 {[%clk 0:02:12]} 8. cxd5 {[%clk 0:02:42]}  Bg4 {[%clk 0:02:09]} 9. h3 {[%clk 0:02:17]}  Bxf3 {[%clk 0:02:08]} 10. Qxf3 {[%clk 0:02:17]}  Be7 {[%clk 0:02:07]} 11. g4 {[%clk 0:02:03]}  O-O {[%clk 0:02:04]} 12. g5 {[%clk 0:02:03]}  Nfd7 {[%clk 0:02:04]} 13. h4 {[%clk 0:01:52]}  b5 {[%clk 0:02:01]} 14. h5 {[%clk 0:01:52]}  b4 {[%clk 0:02:01]} 15. Nd1 {[%clk 0:01:49]}  c4 {[%clk 0:01:57]} 16. Ne3 {[%clk 0:01:39]}  Nb6 {[%clk 0:01:57]} 17. Nf5 {[%clk 0:01:38]}  Re8 {[%clk 0:01:51]} 18. g6 {[%clk 0:01:33]}  hxg6 {[%clk 0:01:48]} 19. hxg6 {[%clk 0:01:33]}  fxg6 {[%clk 0:01:48]} 20. Nd4 {[%clk 0:01:20]}  Bf6 {[%clk 0:01:37]} 21. Ne6 {[%clk 0:01:19]}  Qb7 {[%clk 0:01:18]} 22. Be3 {[%clk 0:01:06]}  Nxd5 {[%clk 0:01:15]} 23. exd5 {[%clk 0:01:04]}  Rxe6 {[%clk 0:01:14]} 24. Bh3 {[%clk 0:00:52]}  Re8 {[%clk 0:01:01]} 25. Kf2 {[%clk 0:00:50]}  Nd7 {[%clk 0:00:44]} 26. Be6+ {[%clk 0:00:49]}  Rxe6 {[%clk 0:00:44]} 27. dxe6 {[%clk 0:00:50]}  Qxf3+ {[%clk 0:00:45]} 28. Kxf3 {[%clk 0:00:51]}  Nf8 {[%clk 0:00:42]} 29. Rac1 {[%clk 0:00:47]}  Rc8 {[%clk 0:00:40]} 30. Rhd1 {[%clk 0:00:46]}  Nxe6 {[%clk 0:00:35]} 31. Rxd6 {[%clk 0:00:45]}  Kf7 {[%clk 0:00:32]} 32. Rc2 {[%clk 0:00:38]}  a5 {[%clk 0:00:29]} 33. Ra6 {[%clk 0:00:38]}  Nd4+ {[%clk 0:00:16]} 34. Bxd4 {[%clk 0:00:38]}  Bxd4 {[%clk 0:00:17]} 35. Rxa5 {[%clk 0:00:37]}  c3 {[%clk 0:00:16]} 36. bxc3 {[%clk 0:00:36]}  bxc3 {[%clk 0:00:16]} 37. Rd5 {[%clk 0:00:36]}  Bf6 {[%clk 0:00:16]} 38. a4 {[%clk 0:00:34]}  Ra8 {[%clk 0:00:16]} 39. a5 {[%clk 0:00:35]}  Ra6 {[%clk 0:00:17]} 40. Ke4 {[%clk 0:00:33]}  Ke6 {[%clk 0:00:17]} 41. Rb5 {[%clk 0:00:33]}  Kd7 {[%clk 0:00:15]} 42. Kd3 {[%clk 0:00:25]}  Kc6 {[%clk 0:00:14]} 43. Kc4 {[%clk 0:00:24]}  Ra8 {[%clk 0:00:14]} 44. Rc5+ {[%clk 0:00:23]}  Kd6 {[%clk 0:00:14]} 45. Rg2 {[%clk 0:00:22]}  Ke6 {[%clk 0:00:11]} 46. Kd3 {[%clk 0:00:17]}  Rd8+ {[%clk 0:00:11]} 47. Kc2 {[%clk 0:00:17]}  Rd4 {[%clk 0:00:11]} 48. a6 {[%clk 0:00:13]}  Ra4 {[%clk 0:00:10]} 49. Rxg6 {[%clk 0:00:09]}  Rxa6 {[%clk 0:00:09]} 50. f5+ {[%clk 0:00:08]}  Kd6 {[%clk 0:00:08]} 51. Rb5 {[%clk 0:00:08]}  Ra2+ {[%clk 0:00:08]} 52. Kb1 {[%clk 0:00:07]}  Rf2 {[%clk 0:00:08]} 53. Rg1 {[%clk 0:00:06]}  Kc6 {[%clk 0:00:07]} 54. Ra5 {[%clk 0:00:06]}  Kb6 {[%clk 0:00:06]} 55. Ra2 {[%clk 0:00:06]}  Rxf5 {[%clk 0:00:05]} 56. Rc2 {[%clk 0:00:06]}  Kc6 {[%clk 0:00:05]} 57. Kc1 {[%clk 0:00:06]}  Kd5 {[%clk 0:00:06]} 58. Rd1+ {[%clk 0:00:06]}  Kc4 {[%clk 0:00:06]} 59. Rg1 {[%clk 0:00:06]}  Bg5+ {[%clk 0:00:06]} 60. Kb1 {[%clk 0:00:06]}  Rb5+ {[%clk 0:00:07]} 61. Ka1 {[%clk 0:00:06]}  Kb3 {[%clk 0:00:07]} 62. Ra2 {[%clk 0:00:04]}  Bf6 {[%clk 0:00:07]} 63. Rb1+ {[%clk 0:00:04]}  Kc4 {[%clk 0:00:07]} 64. Ra4+ {[%clk 0:00:04]}  Kc5 {[%clk 0:00:07]} 65. Ka2 {[%clk 0:00:04]}  c2 {[%clk 0:00:05]} 66. Rc1 {[%clk 0:00:04]}  Rb2+ {[%clk 0:00:04]} 67. Ka3 {[%clk 0:00:04]}  Kb5 {[%clk 0:00:04]} 68. Rf4 {[%clk 0:00:03]}  Be5 {[%clk 0:00:04]} 69. Rf5 {[%clk 0:00:03]}  Rb1 {[%clk 0:00:04]} 70. Rxe5+ {[%clk 0:00:04]}  Kc4 {[%clk 0:00:03]} 71. Rxc2+ {[%clk 0:00:05]}  Kd4 {[%clk 0:00:04]} 72. Rb5 {[%clk 0:00:05]}  Rxb5 {[%clk 0:00:04]} 73. Rg2 {[%clk 0:00:05]}  Rb7 {[%clk 0:00:05]} 74. Rg4+ {[%clk 0:00:05]}  Ke3 {[%clk 0:00:06]} 75. Rg6 {[%clk 0:00:05]}  Ke4 {[%clk 0:00:06]} 76. Rg1 {[%clk 0:00:05]}  Kf5 {[%clk 0:00:05]} 77. Rf1+ {[%clk 0:00:04]}  Ke6 {[%clk 0:00:06]} 78. Rg1 {[%clk 0:00:04]}  Kf6 {[%clk 0:00:06]} 79. Rf1+ {[%clk 0:00:05]}  Ke7 {[%clk 0:00:06]} 80. Rg1 {[%clk 0:00:05]}  Kf7 {[%clk 0:00:07]} 81. Rf1+ {[%clk 0:00:05]}  Kg8 {[%clk 0:00:08]} 82. Rf2 {[%clk 0:00:05]}  Rb8 {[%clk 0:00:08]} 83. Rf3 {[%clk 0:00:05]}  g6 {[%clk 0:00:08]} 84. Rf1 {[%clk 0:00:06]}  Kg7 {[%clk 0:00:09]} 85. Rf2 {[%clk 0:00:05]}  Kh6 {[%clk 0:00:09]} 86. Rh2+ {[%clk 0:00:06]}  Kg7 {[%clk 0:00:10]} 87. Rf2 {[%clk 0:00:06]}  Rb5 {[%clk 0:00:10]} 88. Ka4 {[%clk 0:00:07]}  Rf5 {[%clk 0:00:10]} 89. Rg2 {[%clk 0:00:06]}  g5 {[%clk 0:00:10]} 90. Kb4 {[%clk 0:00:07]}  Kf6 {[%clk 0:00:10]} 91. Kc4 {[%clk 0:00:08]}  Re5 {[%clk 0:00:11]} 92. Kd4 {[%clk 0:00:08]}  Re1 {[%clk 0:00:11]} 93. Rf2+ {[%clk 0:00:06]}  Kg6 {[%clk 0:00:11]} 94. Rf8 {[%clk 0:00:06]}  Kh5 {[%clk 0:00:11]} 95. Rf2 {[%clk 0:00:05]}  g4 {[%clk 0:00:11]} 96. Kd3 {[%clk 0:00:05]}  Kh4 {[%clk 0:00:11]} 97. Kd2 {[%clk 0:00:05]}  Re8 {[%clk 0:00:12]} 98. Rf7 {[%clk 0:00:05]}  g3 {[%clk 0:00:11]} 99. Rh7+ {[%clk 0:00:06]}  Kg4 {[%clk 0:00:12]} 100. Rg7+ {[%clk 0:00:06]}  Kf3 {[%clk 0:00:12]} 101. Rf7+ {[%clk 0:00:07]}  Kg2 {[%clk 0:00:12]} 102. Rh7 {[%clk 0:00:07]}  Kg1 {[%clk 0:00:12]} 103. Rg7 {[%clk 0:00:06]}  g2 {[%clk 0:00:13]} 104. Kd3 {[%clk 0:00:06]}  Kf2 {[%clk 0:00:12]} 105. Rf7+ {[%clk 0:00:06]}  Kg1 {[%clk 0:00:12]} 106. Rg7 {[%clk 0:00:07]}  Re5 {[%clk 0:00:12]} 107. Kd4 {[%clk 0:00:06]}  Re2 {[%clk 0:00:12]} 108. Kd3 {[%clk 0:00:06]}  Rf2 {[%clk 0:00:11]} 109. Ke3 {[%clk 0:00:06]}  Kf1 {[%clk 0:00:11]} 110. Ra7 {[%clk 0:00:05]}  g1=Q {[%clk 0:00:10]} 111. Ra1+ {[%clk 0:00:04]}  Kg2 {[%clk 0:00:11]} 112. Ra7 {[%clk 0:00:05]}  Qe1+ {[%clk 0:00:10]} 113. Kd3 {[%clk 0:00:05]}  Rd2+ {[%clk 0:00:11]} 114. Kc3 {[%clk 0:00:06]}  Qc1+ {[%clk 0:00:11]} 115. Kb3 {[%clk 0:00:06]}  Rb2+ {[%clk 0:00:11]} 116. Ka3 {[%clk 0:00:07]}  Qa1# {[%clk 0:00:12]} 0-1


[Site "https://www.chess.com"]

[Event "Titled Tuesday Blitz December 06 Late 2022"]
[White "Winterberg, Lukas"]
[Black "Gallo Garcia, Kemel Antonio"]
[WhiteFideId "24622702"]
[BlackFideId "3523896"]
[WhiteElo "2350"]
[BlackElo "2359"]
[Result "0-1"]
[Round "06"]
[TimeControl "180+1"]
[Date "2022.12.06"]
[WhiteClock "0:01:19"]
[BlackClock "0:01:30"]

1. Nf3 {[%clk 0:03:00]}  Nf6 {[%clk 0:02:55]} 2. c4 {[%clk 0:02:59]}  b6 {[%clk 0:02:53]} 3. g3 {[%clk 0:02:57]}  Bb7 {[%clk 0:02:53]} 4. Bg2 {[%clk 0:02:57]}  e6 {[%clk 0:02:54]} 5. O-O {[%clk 0:02:55]}  Be7 {[%clk 0:02:54]} 6. d4 {[%clk 0:02:55]}  O-O {[%clk 0:02:54]} 7. Re1 {[%clk 0:02:56]}  Ne4 {[%clk 0:02:53]} 8. Ng5 {[%clk 0:02:50]}  Bxg5 {[%clk 0:02:51]} 9. Qc2 {[%clk 0:02:25]}  Bxc1 {[%clk 0:02:26]} 10. Rxc1 {[%clk 0:02:10]}  f5 {[%clk 0:02:21]} 11. Nd2 {[%clk 0:01:55]}  Nd6 {[%clk 0:02:13]} 12. c5 {[%clk 0:01:51]}  Bxg2 {[%clk 0:02:10]} 13. cxd6 {[%clk 0:01:51]}  Bc6 {[%clk 0:02:10]} 14. dxc7 {[%clk 0:01:48]}  Qxc7 {[%clk 0:02:11]} 15. d5 {[%clk 0:01:48]}  exd5 {[%clk 0:02:10]} 16. Nf3 {[%clk 0:01:48]}  Na6 {[%clk 0:02:04]} 17. Qd2 {[%clk 0:01:36]}  f4 {[%clk 0:01:55]} 18. b4 {[%clk 0:01:31]}  fxg3 {[%clk 0:01:51]} 19. hxg3 {[%clk 0:01:30]}  Qd6 {[%clk 0:01:45]} 20. Nd4 {[%clk 0:01:27]}  Qxb4 {[%clk 0:01:41]} 21. Qd3 {[%clk 0:01:25]}  Nc5 {[%clk 0:01:39]} 22. Qd1 {[%clk 0:01:23]}  Qa4 {[%clk 0:01:34]} 23. Qd2 {[%clk 0:01:19]}  Ne4 {[%clk 0:01:33]} 24. Qe3 {[%clk 0:01:19]}  Rae8 {[%clk 0:01:30]} 0-1


[Site "https://www.chess.com"]

[Event "Titled Tuesday Blitz December 06 Late 2022"]
[White "Yeritsyan, Hayk"]
[Black "Zhu, Jiner"]
[WhiteFideId "13307320"]
[BlackFideId "8608059"]
[WhiteElo "2420"]
[BlackElo "2384"]
[Result "1-0"]
[Round "06"]
[TimeControl "180+1"]
[Date "2022.12.07"]
[WhiteClock "0:02:53"]
[BlackClock "0:01:55"]

1. d4 {[%clk 0:03:00]}  Nf6 {[%clk 0:02:56]} 2. Nf3 {[%clk 0:03:01]}  c5 {[%clk 0:02:55]} 3. c3 {[%clk 0:02:59]}  e6 {[%clk 0:02:52]} 4. e3 {[%clk 0:02:58]}  d5 {[%clk 0:02:51]} 5. Bd3 {[%clk 0:02:58]}  Nc6 {[%clk 0:02:51]} 6. Nbd2 {[%clk 0:02:59]}  Bd6 {[%clk 0:02:50]} 7. Qe2 {[%clk 0:02:59]}  O-O {[%clk 0:02:45]} 8. O-O {[%clk 0:02:59]}  b6 {[%clk 0:02:30]} 9. e4 {[%clk 0:02:59]}  dxe4 {[%clk 0:02:20]} 10. Nxe4 {[%clk 0:02:59]}  Bb7 {[%clk 0:02:16]} 11. Nxf6+ {[%clk 0:02:58]}  Qxf6 {[%clk 0:02:15]} 12. dxc5 {[%clk 0:02:58]}  Bxc5 {[%clk 0:02:14]} 13. Bg5 {[%clk 0:02:57]}  Nd4 {[%clk 0:01:54]} 14. cxd4 {[%clk 0:02:53]}  Bxf3 {[%clk 0:01:54]} 15. Bxf6 {[%clk 0:02:53]}  Bxe2 {[%clk 0:01:54]} 16. Bxe2 {[%clk 0:02:53]}  gxf6 {[%clk 0:01:54]} 17. dxc5 {[%clk 0:02:54]}  bxc5 {[%clk 0:01:55]} 18. Rfd1 {[%clk 0:02:53]} 1-0


[Site "https://www.chess.com"]

[Event "Titled Tuesday Blitz December 06 Late 2022"]
[White "Yuan, Qingyu"]
[Black "Jarmula, Lukasz"]
[WhiteFideId "8609772"]
[BlackFideId "1160664"]
[WhiteElo "2716"]
[BlackElo "2584"]
[Result "0-1"]
[Round "06"]
[TimeControl "180+1"]
[Date "2022.12.07"]
[WhiteClock "0:00:04"]
[BlackClock "0:00:16"]

1. e4 {[%clk 0:03:00]}  e6 {[%clk 0:02:59]} 2. d4 {[%clk 0:03:01]}  d5 {[%clk 0:02:59]} 3. Nc3 {[%clk 0:03:01]}  Nf6 {[%clk 0:02:59]} 4. e5 {[%clk 0:03:02]}  Nfd7 {[%clk 0:02:58]} 5. f4 {[%clk 0:03:03]}  c5 {[%clk 0:02:59]} 6. Nf3 {[%clk 0:03:03]}  Nc6 {[%clk 0:03:00]} 7. Be3 {[%clk 0:03:04]}  cxd4 {[%clk 0:02:58]} 8. Nxd4 {[%clk 0:03:04]}  Qb6 {[%clk 0:02:58]} 9. Qd2 {[%clk 0:03:03]}  Qxb2 {[%clk 0:02:58]} 10. Rb1 {[%clk 0:02:59]}  Qa3 {[%clk 0:02:58]} 11. Bb5 {[%clk 0:02:44]}  Nxd4 {[%clk 0:02:57]} 12. Bxd4 {[%clk 0:02:43]}  a6 {[%clk 0:02:57]} 13. Bxd7+ {[%clk 0:02:38]}  Bxd7 {[%clk 0:02:56]} 14. Rb3 {[%clk 0:02:34]}  Qe7 {[%clk 0:02:55]} 15. Rxb7 {[%clk 0:02:32]}  Qh4+ {[%clk 0:02:54]} 16. Bf2 {[%clk 0:02:10]}  Qd8 {[%clk 0:02:52]} 17. O-O {[%clk 0:02:06]}  Rc8 {[%clk 0:02:51]} 18. Rfb1 {[%clk 0:02:01]}  Rc4 {[%clk 0:02:26]} 19. Ra7 {[%clk 0:01:25]}  Bb4 {[%clk 0:02:13]} 20. Rb3 {[%clk 0:00:59]}  Qc8 {[%clk 0:02:04]} 21. Rxb4 {[%clk 0:00:46]}  Rxb4 {[%clk 0:02:03]} 22. h3 {[%clk 0:00:39]}  Rc4 {[%clk 0:01:57]} 23. Bd4 {[%clk 0:00:34]}  g6 {[%clk 0:01:46]} 24. Kh2 {[%clk 0:00:22]}  h5 {[%clk 0:01:45]} 25. Nd1 {[%clk 0:00:17]}  Rxc2 {[%clk 0:01:13]} 26. Qb4 {[%clk 0:00:17]}  Rc4 {[%clk 0:01:12]} 27. Qb6 {[%clk 0:00:13]}  O-O {[%clk 0:01:07]} 28. Ne3 {[%clk 0:00:13]}  Ra4 {[%clk 0:00:52]} 29. Qd6 {[%clk 0:00:13]}  Rxd4 {[%clk 0:00:47]} 30. f5 {[%clk 0:00:12]}  Qb8 {[%clk 0:00:33]} 31. Rxd7 {[%clk 0:00:06]}  Qxd6 {[%clk 0:00:32]} 32. exd6 {[%clk 0:00:06]}  gxf5 {[%clk 0:00:32]} 33. Rb7 {[%clk 0:00:04]}  Rd8 {[%clk 0:00:30]} 34. d7 {[%clk 0:00:04]}  Kg7 {[%clk 0:00:29]} 35. Nc2 {[%clk 0:00:04]}  Rc4 {[%clk 0:00:24]} 36. Nb4 {[%clk 0:00:04]}  a5 {[%clk 0:00:23]} 37. Na6 {[%clk 0:00:04]}  Kf6 {[%clk 0:00:21]} 38. a3 {[%clk 0:00:03]}  Rc6 {[%clk 0:00:19]} 39. Nc7 {[%clk 0:00:03]}  Rxd7 {[%clk 0:00:16]} 40. Nxd5+ {[%clk 0:00:04]}  Rxd5 {[%clk 0:00:16]} 41. Rc7 {[%clk 0:00:04]}  Rxc7 {[%clk 0:00:16]} 0-1


[Site "https://www.chess.com"]

[Event "Titled Tuesday Blitz December 06 Late 2022"]
[White "Ambartsumova, Karina"]
[Black "Meunier, Clement"]
[WhiteFideId "4166299"]
[BlackFideId "20667930"]
[WhiteElo "2319"]
[BlackElo "2233"]
[Result "0-1"]
[Round "07"]
[TimeControl "180+1"]
[Date "2022.12.07"]
[WhiteClock "0:00:12"]
[BlackClock "0:00:06"]

1. Nf3 {[%clk 0:03:00]}  Nf6 {[%clk 0:02:56]} 2. g3 {[%clk 0:02:59]}  b5 {[%clk 0:02:55]} 3. Bg2 {[%clk 0:02:59]}  Bb7 {[%clk 0:02:54]} 4. d4 {[%clk 0:02:58]}  e6 {[%clk 0:02:51]} 5. O-O {[%clk 0:02:57]}  Be7 {[%clk 0:02:41]} 6. a4 {[%clk 0:02:49]}  a6 {[%clk 0:02:36]} 7. c3 {[%clk 0:02:35]}  O-O {[%clk 0:02:35]} 8. Nbd2 {[%clk 0:02:28]}  b4 {[%clk 0:02:25]} 9. Qc2 {[%clk 0:02:18]}  d5 {[%clk 0:02:20]} 10. c4 {[%clk 0:02:06]}  c6 {[%clk 0:01:51]} 11. a5 {[%clk 0:01:58]}  Nbd7 {[%clk 0:01:31]} 12. Nb3 {[%clk 0:01:42]}  dxc4 {[%clk 0:01:26]} 13. Qxc4 {[%clk 0:01:42]}  Rc8 {[%clk 0:01:27]} 14. Ne5 {[%clk 0:01:36]}  Nxe5 {[%clk 0:00:55]} 15. dxe5 {[%clk 0:01:36]}  Nd7 {[%clk 0:00:56]} 16. f4 {[%clk 0:01:14]}  Qc7 {[%clk 0:00:50]} 17. e4 {[%clk 0:01:14]}  c5 {[%clk 0:00:25]} 18. Be3 {[%clk 0:01:06]}  Qc6 {[%clk 0:00:25]} 19. Rac1 {[%clk 0:01:03]}  Qb5 {[%clk 0:00:25]} 20. Rfd1 {[%clk 0:01:01]}  Rfd8 {[%clk 0:00:25]} 21. Kf2 {[%clk 0:00:34]}  Kf8 {[%clk 0:00:23]} 22. h4 {[%clk 0:00:33]}  Ke8 {[%clk 0:00:21]} 23. Kf3 {[%clk 0:00:30]}  Qxc4 {[%clk 0:00:18]} 24. Rxc4 {[%clk 0:00:30]}  Nxe5+ {[%clk 0:00:19]} 25. fxe5 {[%clk 0:00:27]}  Rxd1 {[%clk 0:00:19]} 26. Ke2 {[%clk 0:00:15]}  Rb1 {[%clk 0:00:16]} 27. Rc2 {[%clk 0:00:15]}  c4 {[%clk 0:00:09]} 28. Nd2 {[%clk 0:00:15]}  b3 {[%clk 0:00:09]} 29. Rxc4 {[%clk 0:00:15]}  Rxb2 {[%clk 0:00:07]} 30. Rb4 {[%clk 0:00:12]}  Bxb4 {[%clk 0:00:06]} 0-1


[Site "https://www.chess.com"]

[Event "Titled Tuesday Blitz December 06 Late 2022"]
[White "Ankerst, Mihael"]
[Black "Goroshkov, Maksym"]
[WhiteFideId "14602369"]
[BlackFideId "14142716"]
[WhiteElo "2380"]
[BlackElo "2258"]
[Result "0-1"]
[Round "07"]
[TimeControl "180+1"]
[Date "2022.12.07"]
[WhiteClock "0:00:01"]
[BlackClock "0:00:48"]

1. e4 {[%clk 0:02:59]}  e5 {[%clk 0:03:00]} 2. Nf3 {[%clk 0:02:59]}  d6 {[%clk 0:03:01]} 3. Nc3 {[%clk 0:02:59]}  Nf6 {[%clk 0:03:01]} 4. d4 {[%clk 0:03:00]}  exd4 {[%clk 0:03:02]} 5. Nxd4 {[%clk 0:03:00]}  Be7 {[%clk 0:03:02]} 6. Bf4 {[%clk 0:02:53]}  O-O {[%clk 0:03:02]} 7. Qd2 {[%clk 0:02:53]}  Nc6 {[%clk 0:02:59]} 8. O-O-O {[%clk 0:02:50]}  Nxd4 {[%clk 0:02:59]} 9. Qxd4 {[%clk 0:02:50]}  Be6 {[%clk 0:02:59]} 10. Be2 {[%clk 0:02:48]}  a6 {[%clk 0:02:57]} 11. g4 {[%clk 0:02:46]}  Nxg4 {[%clk 0:02:51]} 12. f3 {[%clk 0:02:44]}  Bf6 {[%clk 0:02:49]} 13. Qg1 {[%clk 0:02:42]}  Ne5 {[%clk 0:02:48]} 14. Nd5 {[%clk 0:02:37]}  Bxd5 {[%clk 0:02:45]} 15. Rxd5 {[%clk 0:02:38]}  c6 {[%clk 0:02:43]} 16. Rd2 {[%clk 0:02:33]}  Qe7 {[%clk 0:02:39]} 17. Be3 {[%clk 0:02:33]}  Rad8 {[%clk 0:02:37]} 18. f4 {[%clk 0:02:32]}  Ng6 {[%clk 0:02:34]} 19. Bd3 {[%clk 0:02:32]}  Qe6 {[%clk 0:02:19]} 20. Kb1 {[%clk 0:02:22]}  Rfe8 {[%clk 0:02:06]} 21. Rg2 {[%clk 0:02:19]}  c5 {[%clk 0:01:48]} 22. e5 {[%clk 0:02:02]}  dxe5 {[%clk 0:01:47]} 23. f5 {[%clk 0:02:02]}  Qb6 {[%clk 0:01:38]} 24. fxg6 {[%clk 0:02:00]}  hxg6 {[%clk 0:01:38]} 25. Bc4 {[%clk 0:01:57]}  e4 {[%clk 0:01:35]} 26. b3 {[%clk 0:01:50]}  Qa5 {[%clk 0:01:30]} 27. Qe1 {[%clk 0:01:06]}  Rd1+ {[%clk 0:01:11]} 28. Qxd1 {[%clk 0:01:02]}  Qc3 {[%clk 0:01:12]} 29. Bxf7+ {[%clk 0:00:39]}  Kxf7 {[%clk 0:01:07]} 30. Qd5+ {[%clk 0:00:30]}  Re6 {[%clk 0:01:06]} 31. Qd7+ {[%clk 0:00:06]}  Re7 {[%clk 0:01:04]} 32. Qd5+ {[%clk 0:00:06]}  Kf8 {[%clk 0:01:02]} 33. Kc1 {[%clk 0:00:05]}  Qa1+ {[%clk 0:00:59]} 34. Kd2 {[%clk 0:00:06]}  Qxh1 {[%clk 0:00:59]} 35. Rf2 {[%clk 0:00:06]}  Ke8 {[%clk 0:00:50]} 36. Qxc5 {[%clk 0:00:05]}  Rd7+ {[%clk 0:00:49]} 37. Bd4 {[%clk 0:00:01]}  Rxd4+ {[%clk 0:00:49]} 38. Qxd4 {[%clk 0:00:01]}  Bxd4 {[%clk 0:00:48]} 0-1


[Site "https://www.chess.com"]

[Event "Titled Tuesday Blitz December 06 Late 2022"]
[White "Arnold, Ken"]
[Black "Savic, Miroslav"]
[WhiteFideId "2056836"]
[BlackFideId "14508494"]
[WhiteElo "2411"]
[BlackElo "2209"]
[Result "0-1"]
[Round "07"]
[TimeControl "180+1"]
[Date "2022.12.07"]
[WhiteClock "0:01:34"]
[BlackClock "0:01:27"]

1. d4 {[%clk 0:03:00]}  Nf6 {[%clk 0:02:51]} 2. c4 {[%clk 0:02:59]}  e6 {[%clk 0:02:50]} 3. Nf3 {[%clk 0:02:59]}  Bb4+ {[%clk 0:02:48]} 4. Nbd2 {[%clk 0:02:58]}  a5 {[%clk 0:02:48]} 5. a3 {[%clk 0:02:58]}  Bxd2+ {[%clk 0:02:47]} 6. Qxd2 {[%clk 0:02:55]}  O-O {[%clk 0:02:43]} 7. e3 {[%clk 0:02:55]}  b6 {[%clk 0:02:41]} 8. Be2 {[%clk 0:02:55]}  Bb7 {[%clk 0:02:41]} 9. O-O {[%clk 0:02:55]}  Ne4 {[%clk 0:02:39]} 10. Qc2 {[%clk 0:02:53]}  f5 {[%clk 0:02:40]} 11. b3 {[%clk 0:02:51]}  d6 {[%clk 0:02:37]} 12. Bb2 {[%clk 0:02:50]}  Nd7 {[%clk 0:02:35]} 13. b4 {[%clk 0:02:49]}  Ndf6 {[%clk 0:02:35]} 14. Nd2 {[%clk 0:02:38]}  Nxd2 {[%clk 0:02:27]} 15. Qxd2 {[%clk 0:02:37]}  Ne4 {[%clk 0:02:26]} 16. Qc1 {[%clk 0:02:32]}  axb4 {[%clk 0:02:21]} 17. axb4 {[%clk 0:02:31]}  Rxa1 {[%clk 0:02:20]} 18. Bxa1 {[%clk 0:02:31]}  Qg5 {[%clk 0:02:13]} 19. f3 {[%clk 0:02:25]}  Nf6 {[%clk 0:02:06]} 20. Qc3 {[%clk 0:02:07]}  Ra8 {[%clk 0:02:03]} 21. Bb2 {[%clk 0:02:03]}  h5 {[%clk 0:01:53]} 22. Ra1 {[%clk 0:02:00]}  Rxa1+ {[%clk 0:01:51]} 23. Bxa1 {[%clk 0:02:00]}  h4 {[%clk 0:01:50]} 24. Bf1 {[%clk 0:01:48]}  Bxf3 {[%clk 0:01:47]} 25. c5 {[%clk 0:01:44]}  Bxg2 {[%clk 0:01:41]} 26. cxd6 {[%clk 0:01:34]}  Bd5+ {[%clk 0:01:27]} 0-1


[Site "https://www.chess.com"]

[Event "Titled Tuesday Blitz December 06 Late 2022"]
[White "Bogaudinov, Rushan"]
[Black "Sattarov, Bobir"]
[WhiteFideId "4129288"]
[BlackFideId "14203081"]
[WhiteElo "2028"]
[BlackElo "2358"]
[Result "0-1"]
[Round "07"]
[TimeControl "180+1"]
[Date "2022.12.07"]
[WhiteClock "0:00:14"]
[BlackClock "0:00:11"]

1. a3 {[%clk 0:02:59]}  a5 {[%clk 0:02:54]} 2. d4 {[%clk 0:02:56]}  d5 {[%clk 0:02:53]} 3. g3 {[%clk 0:02:55]}  Nf6 {[%clk 0:02:52]} 4. Bg2 {[%clk 0:02:55]}  h5 {[%clk 0:02:53]} 5. Nf3 {[%clk 0:02:55]}  Nc6 {[%clk 0:02:49]} 6. Nc3 {[%clk 0:02:53]}  Bf5 {[%clk 0:02:47]} 7. Bf4 {[%clk 0:02:51]}  e6 {[%clk 0:02:45]} 8. Nb5 {[%clk 0:02:50]}  Bd6 {[%clk 0:02:42]} 9. Nxd6+ {[%clk 0:02:50]}  cxd6 {[%clk 0:02:43]} 10. c3 {[%clk 0:02:50]}  a4 {[%clk 0:02:42]} 11. Nh4 {[%clk 0:02:44]}  Be4 {[%clk 0:02:41]} 12. f3 {[%clk 0:02:43]}  Bh7 {[%clk 0:02:40]} 13. Bg5 {[%clk 0:02:42]}  Qb6 {[%clk 0:02:39]} 14. Bxf6 {[%clk 0:02:31]}  gxf6 {[%clk 0:02:39]} 15. Qd2 {[%clk 0:02:31]}  Na5 {[%clk 0:02:38]} 16. Rd1 {[%clk 0:02:19]}  Nc4 {[%clk 0:02:36]} 17. Qh6 {[%clk 0:02:14]}  Ke7 {[%clk 0:02:36]} 18. Qc1 {[%clk 0:02:03]}  Nxb2 {[%clk 0:02:34]} 19. Rd2 {[%clk 0:02:01]}  Nc4 {[%clk 0:02:33]} 20. Ra2 {[%clk 0:02:01]}  e5 {[%clk 0:02:01]} 21. O-O {[%clk 0:01:37]}  exd4 {[%clk 0:01:56]} 22. Kh1 {[%clk 0:01:37]}  Rac8 {[%clk 0:01:39]} 23. cxd4 {[%clk 0:01:32]}  Qxd4 {[%clk 0:01:38]} 24. e3 {[%clk 0:00:50]}  Qc5 {[%clk 0:01:24]} 25. Qe1 {[%clk 0:00:46]}  Kf8 {[%clk 0:01:18]} 26. Bh3 {[%clk 0:00:41]}  Re8 {[%clk 0:01:17]} 27. Re2 {[%clk 0:00:36]}  Bd3 {[%clk 0:01:12]} 28. Rff2 {[%clk 0:00:29]}  Bxe2 {[%clk 0:01:11]} 29. Rxe2 {[%clk 0:00:30]}  Rxe3 {[%clk 0:01:11]} 30. Nf5 {[%clk 0:00:30]}  Re5 {[%clk 0:00:56]} 31. f4 {[%clk 0:00:29]}  Re4 {[%clk 0:00:56]} 32. Bg2 {[%clk 0:00:28]}  Kg8 {[%clk 0:00:37]} 33. Bxe4 {[%clk 0:00:26]}  dxe4 {[%clk 0:00:37]} 34. Rxe4 {[%clk 0:00:26]}  Qxf5 {[%clk 0:00:34]} 35. Rxc4 {[%clk 0:00:24]}  Kg7 {[%clk 0:00:17]} 36. Qe4 {[%clk 0:00:20]}  Qg4 {[%clk 0:00:15]} 37. Kg2 {[%clk 0:00:14]}  h4 {[%clk 0:00:12]} 38. Qf3 {[%clk 0:00:11]}  Qe6 {[%clk 0:00:09]} 39. Re4 {[%clk 0:00:09]}  Qa2+ {[%clk 0:00:07]} 40. Re2 {[%clk 0:00:09]}  Qb1 {[%clk 0:00:06]} 41. f5 {[%clk 0:00:09]}  hxg3 {[%clk 0:00:05]} 42. Qg4+ {[%clk 0:00:07]}  Kf8 {[%clk 0:00:05]} 43. hxg3 {[%clk 0:00:01]}  Qh1+ {[%clk 0:00:04]} 44. Kf2 {[%clk 0:00:02]}  Rh2+ {[%clk 0:00:05]} 45. Ke3 {[%clk 0:00:03]}  Qc1+ {[%clk 0:00:05]} 46. Kf3 {[%clk 0:00:02]}  Qf1+ {[%clk 0:00:04]} 47. Ke3 {[%clk 0:00:02]}  Rxe2+ {[%clk 0:00:04]} 48. Qxe2 {[%clk 0:00:02]}  Qxe2+ {[%clk 0:00:05]} 49. Kxe2 {[%clk 0:00:03]}  Ke7 {[%clk 0:00:04]} 50. Kd3 {[%clk 0:00:04]}  d5 {[%clk 0:00:05]} 51. Kc3 {[%clk 0:00:03]}  Kd6 {[%clk 0:00:04]} 52. Kd4 {[%clk 0:00:04]}  b6 {[%clk 0:00:04]} 53. g4 {[%clk 0:00:03]}  b5 {[%clk 0:00:05]} 54. Kc3 {[%clk 0:00:04]}  Kc5 {[%clk 0:00:05]} 55. Kd3 {[%clk 0:00:04]}  d4 {[%clk 0:00:05]} 56. Ke4 {[%clk 0:00:04]}  Kc4 {[%clk 0:00:05]} 57. g5 {[%clk 0:00:04]}  fxg5 {[%clk 0:00:06]} 58. Ke5 {[%clk 0:00:05]}  d3 {[%clk 0:00:05]} 59. Kf6 {[%clk 0:00:06]}  d2 {[%clk 0:00:06]} 60. Kxf7 {[%clk 0:00:07]}  d1=Q {[%clk 0:00:07]} 61. Kg7 {[%clk 0:00:08]}  Qd4+ {[%clk 0:00:07]} 62. f6 {[%clk 0:00:09]}  Qxf6+ {[%clk 0:00:07]} 63. Kxf6 {[%clk 0:00:09]}  g4 {[%clk 0:00:08]} 64. Kf5 {[%clk 0:00:10]}  g3 {[%clk 0:00:09]} 65. Kf4 {[%clk 0:00:10]}  g2 {[%clk 0:00:10]} 66. Ke3 {[%clk 0:00:11]}  g1=Q+ {[%clk 0:00:11]} 67. Kd2 {[%clk 0:00:12]}  Qa1 {[%clk 0:00:11]} 68. Kc2 {[%clk 0:00:13]}  Qxa3 {[%clk 0:00:10]} 69. Kb1 {[%clk 0:00:14]}  Qb3+ {[%clk 0:00:09]} 70. Ka1 {[%clk 0:00:14]}  Qc3+ {[%clk 0:00:10]} 71. Kb1 {[%clk 0:00:14]}  Qd2 {[%clk 0:00:10]} 72. Ka1 {[%clk 0:00:14]}  Kb3 {[%clk 0:00:11]} 0-1


[Site "https://www.chess.com"]